Cogmind - Beta 14 @@@ ROGUE MODE // 2024.09.06 @ 16:59:01 Player: OctagonalPrism Result: Destroyed by exploding Nuclear Reactor Performance ------------- Evolutions (0) 0 Regions Visited (1) 200 Robots Destroyed (22) 110 Value Destroyed (586) 586 Prototype IDs (0) 0 Alien Tech Used (0) 0 Bonus (0) 0 TOTAL SCORE: 896 Bonus ------- None Cogmind --------- Core Integrity 0/250 Matter 247/300 Energy 250/250 System Corruption 0% Temperature Cool (0) Movement Walking (190) Ox1 Location -10/Materials Parts ------- > --- POWER (1) -------- Ion Engine > --- PROPULSION (2) --- Aluminum Leg > --- UTILITY (2) ------ Small Storage Unit Targeting Computer > --- WEAPON (2) ------- Light Assault Rifle Light Assault Rifle > --- INVENTORY (8) ---- Light Treads Sensor Array Small Laser Peak State ------------ > --- POWER ------------ Light Nuclear Core > --- PROPULSION ------- Aluminum Leg Aluminum Leg > --- UTILITY ---------- Improved Heat Sink Small Storage Unit > --- WEAPON ----------- Small Laser Light Assault Rifle > --- INVENTORY -------- Ion Engine Sensor Array [Rating: 11] Favorites ----------- Power Ion Engine Engine Ion Engine Power Core Light Nuclear Core Propulsion Aluminum Leg Treads Light Treads Leg Aluminum Leg Utility Small Storage Unit Device Improved Heat Sink Storage Small Storage Unit Processor Targeting Computer Protection Weapon Shielding Weapon Small Laser Energy Gun Small Laser Ballistic Gun Light Assault Rifle Build | -11 -10 ------- Run | Yrd Mat Slots Evolved . | . . Power . | . . Propulsion . | . . Utility . | . . Weapon . | . . Parts Attached 19 | 6 13 Power 5 | 1 4 Engine 4 | 1 3 Core 1 | . 1 Reactor . | . . Propulsion 5 | 2 3 Treads 2 | 2 . Leg 3 | . 3 Wheel . | . . Hover . | . . Flight . | . . Utility 4 | 1 3 Device 1 | . 1 Storage 1 | 1 . Processor 1 | . 1 Hackware . | . . Protection 1 | . 1 Artifact . | . . Weapon 5 | 2 3 Energy Gun 2 | 1 1 Energy Cannon . | . . Ballistic Gun 3 | 1 2 Ballistic Cannon . | . . Launcher . | . . Special Weapon . | . . Impact Weapon . | . . Slashing Weapon . | . . Piercing Weapon . | . . Special Melee Weapon . | . . Unidentified Prototypes . | . . Parts Lost 9 | . 9 Power 2 | . 2 Propulsion 4 | . 4 Utility 1 | . 1 Weapon 2 | . 2 Highest Loss Streak 4 | . 4 To Critical Strikes . | . . Average Slot Usage (%) 94 | . 94 Engine 7 | . 7 Core 6 | . 6 Treads 8 | . 8 Leg 16 | . 16 Device 6 | . 6 Storage 14 | . 14 Processor 1 | . 1 Protection 3 | . 3 Energy Gun 11 | . 11 Ballistic Gun 16 | . 16 Peak Build Rating 11 | 6 11 Average Rating 8 | 4 8 On Entrance 3 | . 6 Naked Turns . | . . Heaviest Build 14 | 13 14 Greatest Support 40 | 40 40 Greatest Overweight (x) 3 | . 3 Average Overweight (x) . | . . Largest Inventory Capacity 8 | 8 8 Average Capacity 7 | 6 8 Most Carried 4 | 1 4 Average Carried 2 | . 2 Final Capacity 8 | 8 8 Final Carried 3 | 1 3 Class Distribution -------------------- 57% | Scavenger-Mutant 42% | Mutant Dominant Class ---------------- Scavenger-Mutant | -10/Materials Resources | -11 -10 ----------- Run | Yrd Mat Matter Collected 497 | 225 272 Remotely . | . . Salvage Created 667 | . 667 Parts 47 | . 47 Haulers Intercepted . | . . Recyclers Shooed . | . . Parts Field Recycled . | . . Retrieved Matter . | . . Parts Self-Destructed . | . . Prevented . | . . Kills | -11 -10 ------- Run | Yrd Mat Combat Hostiles Destroyed 19 | . 19 Guns 19 | . 19 Classes Destroyed 3 | . 3 Watcher 3 | . 3 Swarmer 6 | . 6 Grunt 13 | . 13 Best Kill Streak 7 | . 7 Combat Bots Only 7 | . 7 Max Kills in Single Turn 1 | . 1 Gunslinging . | . . Exploded . | . . Melee . | . . Uniques/NPCs Destroyed . | . . Combat | -11 -10 -------- Run | Yrd Mat Hostile Shots Fired 136 | . 136 Missed 32 | . 32 Damage Taken 1194 | . 1194 Core 254 | . 254 Absorbed by Shields . | . . Redirected to Shielding 53 | . 53 Core Remaining (%) 100 | 100 . Volleys Fired 96 | . 96 Largest 2 | . 2 Hottest 60 | . 60 Shots Fired 178 | . 178 Gun 178 | . 178 Cannon . | . . Launcher . | . . Special . | . . Kinetic 112 | . 112 Thermal 66 | . 66 Explosive . | . . Electromagnetic . | . . Robot Hit Streak 7 | . 7 Robot Miss Streak 4 | . 4 Penetration Max . | . . Secondary Targets . | . . Shots Hit Robots 107 | . 107 Core Hits 45 | . 45 Critical Kills . | . . Critical Parts Destroyed . | . . Critical Strikes . | . . Melee Attacks . | . . Impact . | . . Slashing . | . . Piercing . | . . Sneak Attacks . | . . Combat Hostiles . | . . Follow-up Attacks . | . . Damage Inflicted 1101 | . 1101 Guns 1101 | . 1101 Cannons . | . . Explosions . | . . Melee . | . . Ramming . | . . Kinetic 709 | . 709 Thermal 392 | . 392 Explosive . | . . Electromagnetic . | . . Impact . | . . Slashing . | . . Piercing . | . . Highest Corruption . | . . Average Corruption . | . . Corruption Purged . | . . Corruption Blocked . | . . Overload Shots . | . . Overflow Damage . | . . Projectiles . | . . Explosions . | . . Melee . | . . Knockbacks . | . . Impact . | . . Kinetic . | . . Secondary . | . . Self-Inflicted Damage . | . . Shots . | . . Rammed . | . . Targets Rammed . | . . Kicked . | . . Crushed . | . . Highest Temperature 139 | . 139 Average Temperature 56 | . 56 Received Heat Transfer 549 | . 549 Siege Activations . | . . Robots Corrupted . | . . Combat Hostiles . | . . Parts Fried . | . . Impact Corruptions . | . . Robots Melted . | . . Combat Hostiles . | . . Parts Melted . | . . Heat Transferred 900 | . 900 Parts Sabotaged . | . . Parts Stolen . | . . Parts Stripped . | . . Power Chain Reactions . | . . Alert | -11 -10 ------- Run | Yrd Mat Peak Influence 246 | . 246 Initial . | . . Average 76 | . 81 Maximum Alert Level 1 | . 1 Low Security (%) 91 | 100 91 Level 1 8 | . 8 Level 2 . | . . Level 3 . | . . Level 4 . | . . Level 5 . | . . High Security . | . . Max Security . | . . Squads Dispatched 3 | . 3 Investigation 1 | . 1 Extermination . | . . Reinforcement 2 | . 2 Assault . | . . Garrison . | . . Intercept . | . . Searches Triggered . | . . Construction Impeded . | . . Haulers Reinforced . | . . Active Scanning Responses . | . . Cargo Convoy Interrupts . | . . Stealth | -11 -10 --------- Run | Yrd Mat Distress Signals 2 | . 2 Communications Jammed . | . . Distress Signals . | . . Times Spotted 30 | . 30 Peak Tracking Total 8 | . 8 Tactical Retreats . | . . Traps | -11 -10 ------- Run | Yrd Mat Traps Triggered . | . . Indirectly . | . . Trap Hack Attempts . | . . Triggered . | . . Disarmed . | . . Reprogrammed . | . . Reused . | . . Traps Extracted . | . . Installed . | . . Triggered . | . . Machines | -11 -10 ---------- Run | Yrd Mat Machines Disabled 1 | . 1 Max in Single Turn 1 | . 1 Machines Repaired . | . . Machines Dismantled . | . . Machines Sabotaged . | . . Overloaded Fab Kills . | . . Hacking | -11 -10 --------- Run | Yrd Mat Machines Accessed 6 | . 6 Terminals 5 | . 5 Fabricators . | . . Repair Stations . | . . Recycling Units 1 | . 1 Scanalyzers . | . . Garrison Access . | . . Total Hacks 19 | . 19 Successful 8 | . 8 Failed 11 | . 11 Catastrophic 1 | . 1 Database Lockouts . | . . Manual 18 | . 18 Terminals 18 | . 18 Fabricators . | . . Repair Stations . | . . Recycling Units 1 | . 1 Scanalyzers . | . . Garrison Access . | . . Terminal Hacks 4 | . 4 Robot Analysis 1 | . 1 Terminal Index 1 | . 1 Locate Traps 1 | . 1 Zone Layout 1 | . 1 Fabricator Hacks . | . . Repair Station Hacks . | . . Recycling Unit Hacks . | . . Scanalyzer . | . . Garrison Access Hacks . | . . Unauthorized Hacks 4 | . 4 Terminals 3 | . 3 Botnet 2 | . 2 Operators 1 | . 1 Fabricators . | . . Repair Stations . | . . Recycling Units 1 | . 1 Recyclers 1 | . 1 Scanalyzers . | . . Garrison Access . | . . Data Cores Recovered . | . . Used . | . . Hacking Detections 4 | . 4 Full Trace Events 2 | . 2 Feedback Events . | . . Feedback Blocked . | . . Robot Schematics Acquired . | . . Robots Built . | . . Authchips . | . . Time . | . . Total Robot Build Rating . | . . Part Schematics Acquired . | . . Parts Built . | . . Authchips . | . . Time . | . . Total Part Build Rating . | . . Parts Repaired . | . . Time . | . . Parts Recycled . | . . Recycled Matter . | . . Retrieved Matter . | . . Retrieved Components . | . . Parts Scanalyzed . | . . Part Schematics Acquired . | . . Parts Damaged . | . . Bothacking | -11 -10 ------------ Run | Yrd Mat Used RIF Installer . | . . Robots Hacked . | . . Non-combat . | . . Combat . | . . Robot Hacks Applied . | . . Relay Couplers Released . | . . Fabnet Peak Effective % . | . . Robots Rewired . | . . Allies Hacked . | . . Hacks Repelled . | . . Allies | -11 -10 -------- Run | Yrd Mat Total Allies . | . . Largest Group . | . . Highest-Rated Group . | . . Highest-Rated Ally . | . . Total Orders . | . . Ally Attacks . | . . Total Damage . | . . Kills . | . . Allies Corrupted . | . . Allies Melted . | . . Intel | -11 -10 ------- Run | Yrd Mat Robot Analysis Total 1 | . 1 Derelict Logs Recovered . | . . Drone Launches . | . . Drone Recoveries . | . . Exploration | -11 -10 ------------- Run | Yrd Mat Turns Passed 1016 | 66 950 Spaces Moved 508 | 40 468 Core 16 | 6 10 Treads 162 | 34 128 Legs 330 | . 330 Wheels . | . . Hover . | . . Flight . | . . Fastest Speed 50 | 50 120 Average Speed 134 | 143 133 Slowest Speed 200 | 160 200 Overloaded Moves . | . . Propulsion Burnouts . | . . Robots Hopped . | . . Cave-ins Triggered . | . . Exploration Rate (%) 43 | 3 83 Regions Visited 1 Branch Regions . Pre-discovered Areas . | . . Known Exits Taken . | . . Unknown Exits Taken 1 | 1 . Scrap Searched . | . . Spaces Dug . | . . Terrain Destroyed . | . . Melee . | . . Projectile . | . . AOE . | . . Terrain Rammed . | . . Walls Destroyed . | . . Machines Disabled . | . . Actions | -11 -10 --------- Run | Yrd Mat Total 673 | 46 627 Wait 44 | . 44 Move 507 | 39 468 Hop . | . . Pick Up 3 | 1 2 Fast Attach 15 | 6 9 Attach 2 | . 2 Detach 2 | . 2 Swap 2 | . 2 Drop 2 | . 2 Fire 96 | . 96 Melee . | . . Ram . | . . Kick . | . . Crush . | . . Escape Stasis . | . . Rewire . | . . Trap . | . . Miscellaneous . | . . Route ------- -11/Scrapyard -10/Materials (discovered 4 exits: [*Mat x2] / [*Min x2]) History --------- Turn | Location | Event 6 | -11/Scrapyard | Discovered new exit (range 14) 67 | -11/Scrapyard | Entered Materials 242 | -10/Materials | Discovered new exit (range 16) 302 | -10/Materials | Build established: Mutant 354 | -10/Materials | Destroyed 7 combat bots 403 | -10/Materials | Core integrity fell below 50% 439 | -10/Materials | Lost 4 parts (1n1u2w) 520 | -10/Materials | Discovered new exit (range 14) 608 | -10/Materials | Discovered new exit (range 16) 732 | -10/Materials | Discovered new exit (range 8) 744 | -10/Materials | Build established: Scavenger-Mutant 967 | -10/Materials | Derelicts attacked the area 992 | -10/Materials | Core integrity fell below 20% 1017 | -10/Materials | Destroyed by exploding Nuclear Reactor Last Messages --------------- G-34 Mercenary destroyed. Lgt. Nuclear Core destroyed. G-34 Mercenary destroyed. Acquired 12 matter. Acquired Aluminum Leg. G-34 Mercenary destroyed. Acquired 16 matter. Acquired Lgt. Assault Rifle. Dropped Imp. Heat Sink. Acquired Targeting Computer. K-01 Serf collects debris. K-01 Serf cleans the Terminal. K-01 Serf collects debris. W-16 Scout destroyed. K-01 Serf collects debris. ALERT: Derelict incursion detected, dispatching patrols to target area. S-10 Pest destroyed. Nuclear Reactor explodes. Aluminum Leg destroyed. Map ----- +----------------------------------------------------+ | | | | | | | | | | | | | | | | | ?????????????????????????#???????????????????????? | | ????????????????????????? ?????????????????????? | | ?????????????????????????" """???????????????????? | | ?????????????????????????? """???????????????????? | | ?????????????????????????? """???????????????????? | | ??????????????????????????? ???????????????????? | | ??????????????????????????? ???????????????????? | | ??????????????????????????##+##??????????????????? | | ??????????????????????????# ??????????????????? | | ??????????????????????????# #??????????????????? | | ??????????#####??########## #??????????????????? | | ?????????##"""##?# # #??????#???????????? | | ????????##"!!!"### """ # #????? #???????????? | | ????????#"" ""## """ # #???? # ???????? | | ????????# ## [ """ # #### / ????????? | | ????????# < ## #* #???????????? | | ????????# ## %+% #???????????? | | ????????# ## @# #???????????? | | ?????????# #?# # ########???????????? | | ?########## #??# # #############??????? | | ?# !# ############# # = #????? | | ?# """%/[ + T [ ^ #????? | | ?# """ #= [ # """ """ #????? | | ?# * """ # [*= ! * ! # """ "????????? | | ?# ######+#### *[! # ! """ ?????????? | | ?# #??# %%% ## [!! # ?????????? | | ?# ! !#??# ## ###########????????? | | ?# !!!#??# ## """#???########????? | | ?# !!!#??# """ ##o * T"#???# #????? | | ?##########??# """ ## %"""#???# #????? | | ?????????????# """ ## !####???# """ #????? | | ?????????????# ## #??????# """ #????? | | ?????????????######## #??????# """ #????? | | ???????????????????#T #??????# #????? | | ???????????????????## " #?######+########### | | ????????????????????# % "" ### o | | ????????????????????# "" | | ????????????????????# """ | | ????????????????????# "" #######+###### | | ???????########?????# ^ """ #??# # | | ???????# T #?????#^ """ #??# + | | ???????#% #?????# """ #??# * # | +----------------------------------------------------+ Best States ------------- Heat Dissipation 39 Energy Generation 14 Energy Capacity 250 Matter Stores 300 Matter Capacity 300 Sight Range 16 Terrain Scan Density 10 Weapon Shielding 33 Evasion (%) 55 Targeting Accuracy 5 Recoil Reduction 2 Item Schematics ----------------- None Robot Schematics ------------------ None Fabricated ------------ Nothing Alien Tech Used ----------------- None Achievements -------------- None Challenges ------------ None Game ------ Seed TractorGatlingGenerator Manual? 0 Play Time 00:14:04 Cumulative 108.5 hours Start 2024.09.06 @ 16:51:38 End 2024.09.06 @ 16:59:01 Sessions 1 Manual Loads 0 Difficulty Rogue Special Mode None Game No. 100 Rogue 100 Adventurer 0 Explorer 0 Win Type - Total 1 Types 1/0/0/0/0/0/0/0/0 Lore% 37 Gallery% 53 Achievement% 43 Wizard Run 0 Options --------- Layout 2 ASCII 0 Keyboard 0 Movement Arrows Keybinds 0 Fullscreen 1 Font 16/Terminus Map View 55x47 Zoom Use 0% Tactical HUD 0 Map Filters NONE Filters NONE Steam 1 RUN: c5175fb5-a3fc-4fa7-a597-631b172a43c6